fUST/lending_fUST_20250715
["ID","MTS","AMOUNT","RATE_DAILY","PERIOD"]
[372256190,1752564633136,-411.8078171,0.00019178,2]
[372256191,1752564633146,-460.0,0.00019178,2]
[372256192,1752564633156,-460.0,0.00019178,2]
[372256193,1752564633165,-460.0,0.00019178,2]
[372256194,1752564633175,-460.0,0.00019178,2]
[372256195,1752564633184,-463.910739,0.00019178,2]
[372256196,1752564633194,-460.0,0.00019178,2]
[372256197,1752564633204,-460.0,0.00019178,2]
[372256198,1752564633214,-460.0,0.00019178,2]
[372256199,1752564633224,-83.0109874,0.00019178,2]
[372256251,1752564639108,-379.51915745,0.00019178,2]
[372256253,1752564639121,-460.0,0.00019178,2]
[372256255,1752564639130,-216.75540888,0.00019178,2]
[372256257,1752564639142,-243.24459112,0.00019178,2]
[372256259,1752564639151,-424.34344402,0.00019178,2]
[372256261,1752564639163,-35.65655598,0.00019178,2]
[372256263,1752564639173,-460.0,0.00019178,2]
[372256265,1752564639183,-460.0,0.00019178,2]
[372256267,1752564639193,-460.0,0.00019178,2]
[372256269,1752564639202,-460.0,0.00019178,2]
[372256271,1752564639212,-438.29543202,0.00019178,2]
[372256274,1752564639224,-21.70456798,0.00019178,2]
[372256276,1752564639233,-460.0,0.00019178,2]
[372256278,1752564639242,-154.39098797,0.00019178,2]
[372256363,1752564640848,-305.60901203,0.00019178,2]
[372256364,1752564640858,-460.0,0.00019178,2]
[372256365,1752564640869,-460.0,0.00019178,2]
[372256366,1752564640878,-610.35,0.00019178,2]
[372256367,1752564640888,-460.0,0.00019178,2]
[372256369,1752564640898,-146.94619647,0.00019178,2]
[372256371,1752564640910,-313.05380353,0.00019178,2]
[372256372,1752564640920,-460.0,0.00019178,2]
[372256373,1752564640929,-460.0,0.00019178,2]
[372256374,1752564640939,-163.24732292,0.00019178,2]
[372256377,1752564641011,-103.73116527,0.00019178,2]
[372256378,1752564641146,-233.02151181,0.00019178,2]
[372256379,1752564641158,-460.0,0.00019178,2]
[372256380,1752564641169,-460.0,0.00019178,2]
[372256381,1752564641178,-460.0,0.00019178,2]
[372256382,1752564641189,-460.0,0.00019178,2]
[372256383,1752564641199,-231.19070381,0.00019178,2]
[372256384,1752564641210,-460.0,0.00019178,2]
[372256385,1752564641221,-460.0,0.00019178,2]
[372256386,1752564641231,-460.0,0.00019178,2]
[372256387,1752564641240,-476.40030117,0.00019178,2]
[372256388,1752564641250,-460.0,0.00019178,2]
[372256389,1752564641259,-460.0,0.00019178,2]
[372256390,1752564641269,-460.0,0.00019178,2]
[372256391,1752564641279,-460.0,0.00019178,2]
[372256392,1752564641289,-591.94,0.00019178,2]
[372256393,1752564641299,-376.05681339,0.00019178,2]
[372256408,1752564643806,-21.08674792,0.00019178,2]
[372256409,1752564643834,-62.85643869,0.00019178,2]
[372256410,1752564643844,-460.0,0.00019178,2]
[372256411,1752564643854,-460.0,0.00019178,2]
[372256412,1752564643864,-460.0,0.00019178,2]
[372256413,1752564643874,-226.11375805,0.00019178,2]
[372256414,1752564643886,-233.88624195,0.00019178,2]
[372256415,1752564643896,-375.64141432,0.00019178,2]
[372256424,1752564646777,-84.35858568,0.00019178,2]
[372256425,1752564646786,-460.0,0.00019178,2]
[372256426,1752564646797,-460.0,0.00019178,2]
[372256427,1752564646806,-460.0,0.00019178,2]
[372256428,1752564646816,-446.76394229,0.00019178,2]
[372256429,1752564646825,-460.0,0.00019178,2]
[372256430,1752564646835,-563.45,0.00019178,2]
[372256431,1752564646845,-254.15517209,0.00019178,2]
[372256432,1752564646856,-460.0,0.00019178,2]
[372256433,1752564646866,-460.0,0.00019178,2]
[372256434,1752564646876,-460.0,0.00019178,2]
[372256435,1752564646885,-460.0,0.00019178,2]
[372256436,1752564646895,-460.0,0.00019178,2]
[372256437,1752564646904,-590.01,0.00019178,2]
[372256438,1752564646914,-460.0,0.00019178,2]
[372256439,1752564646924,-460.0,0.00019178,2]
[372256440,1752564646933,-460.0,0.00019178,2]
[372256441,1752564646943,-460.0,0.00019178,2]
[372256442,1752564646952,-460.0,0.00019178,2]
[372256443,1752564646962,-460.0,0.00019178,2]
[372256444,1752564646971,-460.0,0.00019178,2]
[372256445,1752564646981,-460.0,0.00019178,2]
[372256446,1752564646991,-480.8113789,0.00019178,2]
[372256447,1752564647001,-460.0,0.00019178,2]
[372256448,1752564647011,-460.0,0.00019178,2]
[372256449,1752564647021,-460.0,0.00019178,2]
[372256450,1752564647030,-460.0,0.00019178,2]
[372256451,1752564647040,-460.0,0.00019178,2]
[372256452,1752564647049,-460.0,0.00019178,2]
[372256453,1752564647059,-460.0,0.00019178,2]
[372256454,1752564647069,-460.0,0.00019178,2]
[372256455,1752564647078,-460.0,0.00019178,2]
[372256456,1752564647087,-460.0,0.00019178,2]
[372256457,1752564647096,-460.0,0.00019178,2]
[372256458,1752564647106,-460.0,0.00019178,2]
[372256459,1752564647115,-462.58682951,0.00019178,2]
[372256460,1752564647126,-460.0,0.00019178,2]
[372256461,1752564647135,-460.54510476,0.00019178,2]
[372256462,1752564647145,-460.0,0.00019178,2]
[372256463,1752564647155,-460.0,0.00019178,2]
[372256464,1752564647165,-460.0,0.00019178,2]
[372256465,1752564647175,-398.12407717,0.00019178,2]
[372256466,1752564647185,-460.0,0.00019178,2]
[372256467,1752564647195,-559.97,0.00019178,2]
[372256468,1752564647205,-460.0,0.00019178,2]
[372256469,1752564647215,-460.0,0.00019178,2]
[372256470,1752564647225,-490.63122503,0.00019178,2]
[372256471,1752564647235,-460.0,0.00019178,2]
[372256472,1752564647244,-460.0,0.00019178,2]
[372256473,1752564647254,-460.0,0.00019178,2]
[372256474,1752564647264,-460.0,0.00019178,2]
[372256475,1752564647274,-460.0,0.00019178,2]
[372256476,1752564647283,-4416.18,0.00019178,2]
[372256477,1752564647293,-460.0,0.00019178,2]
[372256478,1752564647412,-460.0,0.00019178,2]
[372256479,1752564647422,-460.0,0.00019178,2]
[372256480,1752564647432,-541.96,0.00019178,2]
[372256481,1752564647441,-844.39,0.00019178,2]
[372256482,1752564647451,-460.0,0.00019178,2]
[372256483,1752564647460,-460.0,0.00019178,2]
[372256484,1752564647470,-460.0,0.00019178,2]
[372256485,1752564647481,-460.0,0.00019178,2]
[372256486,1752564647490,-460.0,0.00019178,2]
[372256487,1752564647500,-460.0,0.00019178,2]
[372256488,1752564647509,-460.0,0.00019178,2]
[372256489,1752564647519,-460.0,0.00019178,2]
[372256490,1752564647528,-460.0,0.00019178,2]
[372256491,1752564647538,-460.0,0.00019178,2]
[372256492,1752564647547,-4244.92,0.00019178,2]
[372256493,1752564647558,-997.75,0.00019178,2]
[372256494,1752564647567,-460.0,0.00019178,2]
[372256495,1752564647577,-943.6,0.00019178,2]
[372256496,1752564647586,-462.73800375,0.00019178,2]
[372256497,1752564647595,-460.0,0.00019178,2]
[372256498,1752564647605,-460.0,0.00019178,2]
[372256499,1752564647617,-460.0,0.00019178,2]
[372256500,1752564647628,-460.0,0.00019178,2]
[372256501,1752564647638,-460.0,0.00019178,2]
[372256502,1752564647647,-584.77,0.00019178,2]
[372256503,1752564647658,-460.0,0.00019178,2]
[372256504,1752564647667,-460.0,0.00019178,2]
[372256505,1752564647676,-460.0,0.00019178,2]
[372256506,1752564647687,-460.0,0.00019178,2]
[372256507,1752564647696,-460.0,0.00019178,2]
[372256508,1752564647706,-460.0,0.00019178,2]
[372256509,1752564647716,-2512.69,0.00019178,2]
[372256510,1752564647726,-494.56,0.00019178,2]
[372256511,1752564647735,-1537.25,0.00019178,2]
[372256512,1752564647745,-1404.97,0.00019178,2]
[372256513,1752564647754,-460.0,0.00019178,2]
[372256514,1752564647764,-460.0,0.00019178,2]
[372256515,1752564647773,-491.79,0.00019178,2]
[372256516,1752564647783,-3688.31,0.00019178,2]
[372256517,1752564647792,-460.0,0.00019178,2]
[372256518,1752564647802,-460.0,0.00019178,2]
[372256519,1752564647812,-460.0,0.00019178,2]
[372256520,1752564647821,-541.91,0.00019178,2]
[372256521,1752564647830,-460.0,0.00019178,2]
[372256522,1752564647840,-662.15,0.00019178,2]
[372256523,1752564647850,-460.0,0.00019178,2]
[372256524,1752564647859,-1005.23,0.00019178,2]
[372256525,1752564647869,-460.0,0.00019178,2]
[372256526,1752564647880,-460.0,0.00019178,2]
[372256527,1752564647890,-460.0,0.00019178,2]
[372256528,1752564647899,-460.0,0.00019178,2]
[372256529,1752564647909,-627.89,0.00019178,2]
[372256530,1752564647919,-460.0,0.00019178,2]
[372256531,1752564647929,-460.0,0.00019178,2]
[372256532,1752564647940,-460.0,0.00019178,2]
[372256533,1752564647951,-460.0,0.00019178,2]
[372256534,1752564647961,-547.0,0.00019178,2]
[372256535,1752564647973,-460.0,0.00019178,2]
[372256536,1752564647983,-949.49,0.00019178,2]
[372256537,1752564647992,-460.0,0.00019178,2]
[372256538,1752564648003,-504.95520683,0.00019178,2]
[372256539,1752564648012,-460.0,0.00019178,2]
[372256540,1752564648022,-460.0,0.00019178,2]
[372256541,1752564648031,-2146.82,0.00019178,2]
[372256542,1752564648041,-460.0,0.00019178,2]
[372256543,1752564648051,-460.0,0.00019178,2]
[372256544,1752564648061,-460.0,0.00019178,2]
[372256545,1752564648071,-520.59,0.00019178,2]
[372256546,1752564648080,-460.0,0.00019178,2]
[372256547,1752564648089,-1433.72,0.00019178,2]
[372256548,1752564648099,-460.0,0.00019178,2]
[372256549,1752564648108,-460.0,0.00019178,2]
[372256550,1752564648117,-460.0,0.00019178,2]
[372256551,1752564648128,-460.0,0.00019178,2]
[372256552,1752564648138,-460.0,0.00019178,2]
[372256553,1752564648147,-460.0,0.00019178,2]
[372256554,1752564648157,-460.0,0.00019178,2]
[372256555,1752564648167,-1202.12,0.00019178,2]
[372256556,1752564648176,-460.0,0.00019178,2]
[372256557,1752564648186,-460.0,0.00019178,2]
[372256558,1752564648196,-1807.59,0.00019178,2]
[372256559,1752564648205,-460.0,0.00019178,2]
[372256560,1752564648214,-460.0,0.00019178,2]
[372256561,1752564648224,-460.0,0.00019178,2]
[372256562,1752564648234,-1568.56,0.00019178,2]
[372256563,1752564648244,-460.0,0.00019178,2]
[372256564,1752564648254,-460.0,0.00019178,2]
[372256565,1752564648266,-910.07,0.00019178,2]
[372256566,1752564648276,-460.0,0.00019178,2]
[372256567,1752564648285,-484.49,0.00019178,2]
[372256568,1752564648295,-460.0,0.00019178,2]
[372256569,1752564648304,-460.0,0.00019178,2]
[372256570,1752564648314,-460.0,0.00019178,2]
[372256571,1752564648323,-460.0,0.00019178,2]
[372256572,1752564648333,-460.0,0.00019178,2]
[372256573,1752564648343,-460.0,0.00019178,2]
[372256574,1752564648352,-587.22400294,0.00019178,2]
[372256575,1752564648362,-621.64,0.00019178,2]
[372256576,1752564648373,-460.0,0.00019178,2]
[372256577,1752564648383,-460.0,0.00019178,2]
[372256578,1752564648393,-587.78,0.00019178,2]
[372256579,1752564648403,-460.0,0.00019178,2]
[372256580,1752564648412,-460.0,0.00019178,2]
[372256581,1752564648422,-460.0,0.00019178,2]
[372256582,1752564648432,-1167.28,0.00019178,2]
[372256583,1752564648441,-460.0,0.00019178,2]
[372256584,1752564648451,-460.0,0.00019178,2]
[372256585,1752564648460,-460.0,0.00019178,2]
[372256586,1752564648470,-460.0,0.00019178,2]
[372256587,1752564648483,-460.0,0.00019178,2]
[372256588,1752564648498,-666.55,0.00019178,2]
[372256589,1752564648513,-460.0,0.00019178,2]
[372256590,1752564648527,-460.0,0.00019178,2]
[372256591,1752564648537,-287.299398,0.00019178,2]
[372256592,1752564648550,-3042.1131575,0.00019178,2]
[372256593,1752564648563,-9700.0,0.00019178,2]
[372256594,1752564648577,-208.68378975,0.00019214,2]
[372256595,1752564648591,-830.90888764,0.00019352,2]
[372256596,1752564648604,-194.02,0.00019442,3]
[372256597,1752564648619,-582.06,0.00019442,3]
[372256598,1752564648634,-460.0,0.00019452,2]
[372256599,1752564648648,-460.0,0.00019452,2]
[372256600,1752564648661,-460.0,0.00019452,2]
[372256601,1752564648674,-460.0,0.00019452,2]
[372256602,1752564648686,-563.45625718,0.00019452,2]
[372256603,1752564648697,-460.0,0.00019452,2]
[372256604,1752564648710,-460.0,0.00019452,2]
[372256605,1752564648723,-460.0,0.00019452,2]
[372256606,1752564648736,-460.0,0.00019452,2]
[372256607,1752564648749,-460.0,0.00019452,2]
[372256608,1752564648759,-460.0,0.00019452,2]
[372256609,1752564648769,-368.44174212,0.00019452,2]
[372256610,1752564648782,-460.0,0.00019452,2]
[372256611,1752564648794,-460.0,0.00019452,2]
[372256612,1752564648807,-460.0,0.00019452,2]
[372256613,1752564648819,-460.0,0.00019452,2]
[372256614,1752564648832,-460.0,0.00019452,2]
[372256615,1752564648844,-460.0,0.00019452,2]
[372256616,1752564648858,-460.0,0.00019452,2]
[372256617,1752564648871,-460.0,0.00019452,2]
[372256618,1752564648886,-460.0,0.00019452,2]
[372256619,1752564648897,-460.0,0.00019452,2]
[372256620,1752564648907,-460.0,0.00019452,2]
[372256621,1752564648915,-460.0,0.00019452,2]
[372256622,1752564648925,-444.14886663,0.00019452,2]
[372256623,1752564648934,-460.0,0.00019452,2]
[372256624,1752564648944,-610.35,0.00019452,2]
[372256625,1752564648955,-460.0,0.00019452,2]
[372256626,1752564648965,-460.0,0.00019452,2]
[372256627,1752564648977,-460.0,0.00019452,2]
[372256628,1752564648988,-460.0,0.00019452,2]
[372256629,1752564649000,-500.0,0.00019452,2]
[372256630,1752564649013,-460.0,0.00019452,2]
[372256631,1752564649024,-460.0,0.00019452,2]
[372256632,1752564649035,-460.0,0.00019452,2]
[372256633,1752564649046,-460.0,0.00019452,2]
[372256634,1752564649057,-460.0,0.00019452,2]
[372256635,1752564649067,-460.0,0.00019452,2]
[372256636,1752564649078,-460.0,0.00019452,2]
[372256637,1752564649090,-460.0,0.00019452,2]
[372256638,1752564649100,-460.0,0.00019452,2]
[372256639,1752564649111,-460.0,0.00019452,2]
[372256640,1752564649120,-460.0,0.00019452,2]
[372256641,1752564649134,-460.0,0.00019452,2]
[372256642,1752564649146,-591.94,0.00019452,2]
[372256643,1752564649156,-580.52143608,0.00019452,2]
[372256644,1752564649167,-460.0,0.00019452,2]
[372256645,1752564649179,-460.0,0.00019452,2]
[372256646,1752564649190,-460.0,0.00019452,2]
[372256647,1752564649200,-460.0,0.00019452,2]
[372256648,1752564649211,-460.0,0.00019452,2]
[372256649,1752564649221,-460.0,0.00019452,2]
[372256650,1752564649232,-563.45,0.00019452,2]
[372256651,1752564649242,-460.0,0.00019452,2]
[372256652,1752564649254,-460.0,0.00019452,2]
[372256653,1752564649264,-460.0,0.00019452,2]
[372256654,1752564649274,-460.0,0.00019452,2]
[372256655,1752564649288,-463.08,0.00019452,2]
[372256656,1752564649299,-590.01,0.00019452,2]
[372256657,1752564649310,-460.0,0.00019452,2]
[372256658,1752564649320,-460.0,0.00019452,2]
[372256659,1752564649330,-460.0,0.00019452,2]
[372256660,1752564649340,-460.0,0.00019452,2]
[372256661,1752564649351,-460.0,0.00019452,2]
[372256662,1752564649361,-460.0,0.00019452,2]
[372256663,1752564649374,-435.64467231,0.00019452,2]
[372256664,1752564649386,-460.0,0.00019452,2]
[372256665,1752564649397,-460.0,0.00019452,2]
[372256666,1752564649409,-460.0,0.00019452,2]
[372256667,1752564649420,-460.0,0.00019452,2]
[372256668,1752564649430,-460.0,0.00019452,2]
[372256669,1752564649439,-460.0,0.00019452,2]
[372256670,1752564649451,-460.0,0.00019452,2]
[372256671,1752564649462,-460.0,0.00019452,2]
[372256672,1752564649473,-169.40151226,0.00019452,2]
[372256673,1752564649485,-460.0,0.00019452,2]
[372256674,1752564649496,-460.0,0.00019452,2]
[372256675,1752564649508,-463.05888377,0.00019452,2]
[372256676,1752564649519,-590.11139795,0.00019452,2]
[372256677,1752564649531,-460.0,0.00019452,2]
[372256678,1752564649543,-460.0,0.00019452,2]
[372256679,1752564649555,-360.55199838,0.00019452,2]
[372256680,1752564649567,-559.97,0.00019452,2]
[372256681,1752564649579,-460.0,0.00019452,2]
[372256682,1752564649590,-460.0,0.00019452,2]
[372256683,1752564649602,-460.0,0.00019452,2]
[372256684,1752564649614,-460.0,0.00019452,2]
[372256685,1752564649629,-4416.18,0.00019452,2]
[372256686,1752564649641,-460.0,0.00019452,2]
[372256687,1752564649653,-415.82,0.00019452,2]
[372256688,1752564649665,-844.39,0.00019452,2]
[372256689,1752564649677,-460.0,0.00019452,2]
[372256690,1752564649688,-460.0,0.00019452,2]
[372256691,1752564649699,-460.0,0.00019452,2]
[372256692,1752564649708,-460.0,0.00019452,2]
[372256693,1752564649718,-240.52609319,0.00019452,2]
[372256694,1752564649728,-460.0,0.00019452,2]
[372256695,1752564649882,-460.0,0.00019452,2]
[372256696,1752564649900,-4244.92,0.00019452,2]
[372256697,1752564649911,-460.0,0.00019452,2]
[372256698,1752564649921,-997.75,0.00019452,2]
[372256699,1752564649930,-460.0,0.00019452,2]
[372256700,1752564649940,-943.6,0.00019452,2]
[372256701,1752564649950,-460.0,0.00019452,2]
[372256702,1752564649960,-460.0,0.00019452,2]
[372256703,1752564649969,-460.0,0.00019452,2]
[372256704,1752564649980,-460.0,0.00019452,2]
[372256705,1752564649989,-584.77,0.00019452,2]
[372256706,1752564650000,-460.0,0.00019452,2]
[372256707,1752564650010,-460.0,0.00019452,2]
[372256708,1752564650019,-460.0,0.00019452,2]
[372256709,1752564650029,-379.40167366,0.00019452,2]
[372256710,1752564650038,-460.0,0.00019452,2]
[372256711,1752564650049,-2512.69,0.00019452,2]
[372256712,1752564650059,-494.56,0.00019452,2]
[372256713,1752564650068,-1537.25,0.00019452,2]
[372256714,1752564650078,-1404.97,0.00019452,2]
[372256715,1752564650088,-3688.31,0.00019452,2]
[372256716,1752564650097,-460.0,0.00019452,2]
[372256717,1752564650107,-497.50175411,0.00019452,2]
[372256718,1752564650116,-491.79,0.00019452,2]
[372256719,1752564650127,-460.0,0.00019452,2]
[372256720,1752564650136,-541.91,0.00019452,2]
[372256721,1752564650146,-460.0,0.00019452,2]
[372256722,1752564650156,-662.15,0.00019452,2]
[372256723,1752564650168,-523.68,0.00019452,2]
[372256724,1752564650181,-1005.23,0.00019452,2]
[372256725,1752564650191,-460.0,0.00019452,2]
[372256726,1752564650202,-460.0,0.00019452,2]
[372256727,1752564650211,-460.0,0.00019452,2]
[372256728,1752564650222,-460.0,0.00019452,2]
[372256729,1752564650232,-627.89,0.00019452,2]
[372256730,1752564650242,-460.0,0.00019452,2]
[372256731,1752564650253,-460.0,0.00019452,2]
[372256732,1752564650262,-460.0,0.00019452,2]
[372256733,1752564650272,-460.0,0.00019452,2]
[372256734,1752564650282,-460.0,0.00019452,2]
[372256735,1752564650292,-949.49,0.00019452,2]
[372256736,1752564650303,-460.0,0.00019452,2]
[372256737,1752564650313,-460.0,0.00019452,2]
[372256738,1752564650324,-2146.82,0.00019452,2]
[372256739,1752564650335,-460.0,0.00019452,2]
[372256740,1752564650345,-460.0,0.00019452,2]
[372256741,1752564650356,-460.0,0.00019452,2]
[372256742,1752564650366,-520.59,0.00019452,2]
[372256743,1752564650378,-460.0,0.00019452,2]
[372256744,1752564650388,-1433.72,0.00019452,2]
[372256745,1752564650398,-460.0,0.00019452,2]
[372256746,1752564650408,-460.0,0.00019452,2]
[372256747,1752564650417,-460.0,0.00019452,2]
[372256748,1752564650426,-460.0,0.00019452,2]
[372256749,1752564650436,-460.0,0.00019452,2]
[372256750,1752564650447,-1202.12,0.00019452,2]
[372256751,1752564650457,-460.0,0.00019452,2]
[372256752,1752564650467,-460.0,0.00019452,2]
[372256753,1752564650477,-1807.59,0.00019452,2]
[372256754,1752564650488,-460.0,0.00019452,2]
[372256755,1752564650499,-513.15584719,0.00019452,2]
[372256756,1752564650508,-460.0,0.00019452,2]
[372256757,1752564650518,-1568.56,0.00019452,2]
[372256758,1752564650528,-460.0,0.00019452,2]
[372256759,1752564650537,-910.07,0.00019452,2]
[372256760,1752564650547,-460.0,0.00019452,2]
[372256761,1752564650558,-460.0,0.00019452,2]
[372256762,1752564650568,-460.0,0.00019452,2]
[372256763,1752564650577,-460.0,0.00019452,2]
[372256764,1752564650587,-460.98859306,0.00019452,2]
[372256765,1752564650596,-460.0,0.00019452,2]
[372256766,1752564650606,-621.64,0.00019452,2]
[372256767,1752564650617,-247.78201409,0.00019452,2]
[372256768,1752564650627,-460.0,0.00019452,2]
[372256769,1752564650637,-587.78,0.00019452,2]
[372256770,1752564650646,-460.0,0.00019452,2]
[372256771,1752564650656,-460.0,0.00019452,2]
[372256772,1752564650665,-460.0,0.00019452,2]
[372256773,1752564650675,-1167.28,0.00019452,2]
[372256774,1752564650685,-460.0,0.00019452,2]
[372256775,1752564650694,-460.0,0.00019452,2]
[372256776,1752564650704,-460.0,0.00019452,2]
[372256777,1752564650714,-460.0,0.00019452,2]
[372256778,1752564650723,-666.55,0.00019452,2]
[372256779,1752564650734,-460.0,0.00019452,2]
[372256780,1752564650743,-460.0,0.00019452,2]
[372256781,1752564650753,-2742.37062053,0.00019697,2]
[372256782,1752564650763,-1000.0,0.00019721,2]
[372256783,1752564650772,-500.0,0.00019721,2]
[372256784,1752564650782,-508.47847935,0.00019721,2]
[372256785,1752564650791,-500.0,0.00019721,2]
[372256786,1752564650801,-460.0,0.00019726,2]
[372256787,1752564650811,-460.0,0.00019726,2]
[372256788,1752564650821,-460.0,0.00019726,2]
[372256789,1752564650830,-460.0,0.00019726,2]
[372256790,1752564650840,-460.0,0.00019726,2]
[372256791,1752564650850,-217.7196317,0.00019726,2]
[372256792,1752564650860,-460.0,0.00019726,2]
[372256793,1752564650870,-460.0,0.00019726,2]
[372256794,1752564650882,-460.0,0.00019726,2]
[372256795,1752564650892,-460.0,0.00019726,2]
[372256796,1752564650903,-460.0,0.00019726,2]
[372256797,1752564650914,-460.0,0.00019726,2]
[372256798,1752564650924,-460.0,0.00019726,2]
[372256799,1752564650933,-460.0,0.00019726,2]
[372256800,1752564650942,-460.0,0.00019726,2]
[372256801,1752564650951,-610.35,0.00019726,2]
[372256802,1752564650960,-270.97257431,0.00019726,2]
[372256803,1752564650969,-460.0,0.00019726,2]
[372256804,1752564650978,-460.0,0.00019726,2]
[372256805,1752564650987,-460.0,0.00019726,2]
[372256806,1752564650996,-500.0,0.00019726,2]
[372256807,1752564651006,-460.0,0.00019726,2]
[372256808,1752564651015,-460.0,0.00019726,2]
[372256809,1752564651024,-460.0,0.00019726,2]
[372256810,1752564651033,-460.0,0.00019726,2]
[372256811,1752564651042,-421.64675514,0.00019726,2]
[372256812,1752564651051,-460.0,0.00019726,2]
[372256813,1752564651060,-460.0,0.00019726,2]
[372256814,1752564651069,-460.0,0.00019726,2]
[372256815,1752564651078,-460.0,0.00019726,2]
[372256816,1752564651087,-460.0,0.00019726,2]
[372256817,1752564651097,-460.0,0.00019726,2]
[372256818,1752564651106,-460.0,0.00019726,2]
[372256819,1752564651115,-591.94,0.00019726,2]
[372256820,1752564651125,-460.0,0.00019726,2]
[372256821,1752564651134,-460.0,0.00019726,2]
[372256822,1752564651144,-460.0,0.00019726,2]
[372256823,1752564651153,-194.25,0.00019726,2]
[372256824,1752564651162,-460.0,0.00019726,2]
[372256825,1752564651172,-460.0,0.00019726,2]
[372256826,1752564651181,-563.45,0.00019726,2]
[372256827,1752564651191,-460.0,0.00019726,2]
[372256828,1752564651200,-460.0,0.00019726,2]
[372256829,1752564651209,-460.0,0.00019726,2]
[372256830,1752564651218,-590.01,0.00019726,2]
[372256831,1752564651227,-458.13600097,0.00019726,2]
[372256832,1752564651236,-302.53767997,0.00019726,2]
[372256833,1752564651246,-460.0,0.00019726,2]
[372256834,1752564651254,-460.0,0.00019726,2]
[372256835,1752564651264,-460.0,0.00019726,2]
[372256836,1752564651273,-460.0,0.00019726,2]
[372256837,1752564651283,-460.0,0.00019726,2]
[372256838,1752564651292,-460.0,0.00019726,2]
[372256839,1752564651302,-460.0,0.00019726,2]
[372256840,1752564651311,-460.0,0.00019726,2]
[372256841,1752564651320,-460.0,0.00019726,2]
[372256842,1752564651329,-460.0,0.00019726,2]
[372256843,1752564651338,-460.0,0.00019726,2]
[372256844,1752564651348,-520.12,0.00019726,2]
[372256845,1752564651358,-559.97,0.00019726,2]
[372256846,1752564651367,-460.0,0.00019726,2]
[372256847,1752564651377,-460.0,0.00019726,2]
[372256848,1752564651386,-460.0,0.00019726,2]
[372256849,1752564651395,-460.0,0.00019726,2]
[372256850,1752564651404,-4416.18,0.00019726,2]
[372256851,1752564651413,-460.0,0.00019726,2]
[372256852,1752564651422,-844.39,0.00019726,2]
[372256853,1752564651431,-460.0,0.00019726,2]
[372256854,1752564651440,-460.0,0.00019726,2]
[372256855,1752564651449,-460.0,0.00019726,2]
[372256856,1752564651458,-460.0,0.00019726,2]
[372256857,1752564651468,-460.0,0.00019726,2]
[372256858,1752564651478,-4244.92,0.00019726,2]
[372256859,1752564651487,-460.0,0.00019726,2]
[372256860,1752564651496,-997.75,0.00019726,2]
[372256861,1752564651505,-460.0,0.00019726,2]
[372256862,1752564651514,-943.6,0.00019726,2]
[372256863,1752564651523,-460.0,0.00019726,2]
[372256864,1752564651532,-460.0,0.00019726,2]